[Event "FIDE World School-ch G-15 2025"]
[Site "Vrnjacka Banja"]
[Date "2025.03.22"]
[Round "3.1"]
[White "Japparbekova, Malika"]
[Black "Imomkuzieva, Nilufarkhon"]
[Result "1-0"]
[Annotator "NA RC"]
[ECO "C85"]
[WhiteElo "1878"]
[BlackElo "1983"]
[PlyCount "59"]
[EventDate "2025.03.19"]
[EventType "swiss"]
[EventCountry "SRB"]
[SourceTitle "playchess.com"]
[Source "ChessBase"]
[SourceQuality "1"]
[TimeControl "5400+30"]

1. e4 {[%emt 0:00:02]} e5 {[%emt 0:00:05]} 2. Nf3 {[%emt 0:00:05]} Nc6 {[%emt 0:00:03]} 3. Bb5 {[%emt 0:00:08]} a6 {[%emt 0:00:02]} 4. Ba4 {[%emt 0:00:07]} Nf6 {[%emt 0:00:02]} 5. O-O {[%emt 0:00:09]} Be7 {[%emt 0:00:24]} 6. Bxc6 {[%emt 0:00:10]} dxc6 {[%emt 0:06:05]} 7. d3 {[%emt 0:00:07]} Bd6 {[%emt 0:03:34]} 8. Nbd2 {[%emt 0:04:00]} c5 {[%emt 0:01:47]} 9. Nc4 {[%emt 0:02:36]} Qe7 {[%emt 0:00:11]} 10. a4 {[%emt 0:01:14]} b6 {[%emt 0:00:21]} 11. b3 {[%emt 0:00:40]} Bb7 {[%emt 0:07:02]} 12. Nh4 {[%emt 0:06:38]} g6 {[%emt 0:11:42]} 13. f4 {[%emt 0:14:50]} Nd7 {[%emt 0:01:06]} 14. Nf3 {[%emt 0:02:02]} O-O {[%emt 0:05:31]} 15. fxe5 {[%emt 0:13:15]} Nxe5 {[%emt 0:01:11]} 16. Ncxe5 {[%emt 0:01:56]} Bxe5 {[%emt 0:00:09]} 17. Nxe5 {[%emt 0:00:11]} Qxe5 {[%emt 0:00:04]} 18. Bf4 {[%emt 0:00:28]} Qd4+ {[%emt 0:09:51]} 19. Kh1 {[%emt 0:00:07]} f5 {[%emt 0:05:48]} 20. Bh6 {[%emt 0:09:10]} Rf6 {[%emt 0:04:44]} 21. Bg5 {[%emt 0:03:28]} Rf7 {[%emt 0:00:26]} 22. Qc1 {[%emt 0:07:32]} Raf8 {[%emt 0:01:58]} 23. Bh6 {[%emt 0:01:54]} Re8 {[%emt 0:00:04]} 24. Rb1 {[%emt 0:04:37]} Qd7 {[%emt 0:00:52]} 25. Qb2 {[%emt 0:08:04]} fxe4 {[%emt 0:00:29]} 26. Rxf7 {[%emt 0:02:55]} Qxf7 {[%emt 0:00:12]} 27. Kg1 {[%emt 0:00:39]} e3 {[%emt 0:08:08]} 28. Rf1 {[%emt 0:00:31]} Qe7 {[%emt 0:00:56]} 29. Re1 {[%emt 0:01:19]} e2 {[%emt 0:02:24]} 30. Rxe2 {[%emt 0:00:17]} 1-0

[Event "FIDE World School-ch G-15 2025"]
[Site "Vrnjacka Banja"]
[Date "2025.03.22"]
[Round "3.2"]
[White "Preobrazhenskaya, Diana"]
[Black "Torres Ccahuay, Dayana Nievevska"]
[Result "1-0"]
[Annotator "NA RC"]
[ECO "C50"]
[WhiteElo "2032"]
[BlackElo "1840"]
[PlyCount "69"]
[EventDate "2025.03.19"]
[EventType "swiss"]
[EventCountry "SRB"]
[SourceTitle "playchess.com"]
[Source "ChessBase"]
[SourceQuality "1"]
[TimeControl "5400+30"]

1. e4 {[%emt 0:00:03]} e5 {[%emt 0:05:03]} 2. Nf3 {[%emt 0:00:18]} Nc6 {[%emt 0:00:15]} 3. Bc4 {[%emt 0:00:49]} Be7 {[%emt 0:03:02]} 4. d4 {[%emt 0:05:32]} exd4 {[%emt 0:03:44]} 5. Nxd4 {[%emt 0:00:18]} Ne5 {[%emt 0:00:27]} 6. Bb3 {[%emt 0:10:52]} d6 {[%emt 0:05:21]} 7. f4 {[%emt 0:06:09]} Ng4 {[%emt 0:02:54]} 8. O-O {[%emt 0:01:06]} N8f6 {[%emt 0:04:37]} 9. h3 {[%emt 0:03:10]} Nh6 $16 {[%emt 0:00:06]} 10. Nc3 {[%emt 0:08:17]} c6 {[%emt 0:08:11]} 11. f5 {[%emt 0:09:02]} Nhg8 {[%emt 0:06:40]} 12. Bf4 {[%emt 0:02:51]} h5 {[%emt 0:10:17]} 13. Qe2 {[%emt 0:06:06]} Nd7 {[%emt 0:04:29]} 14. Qc4 {[%emt 0:04:28]} Nh6 {[%emt 0:04:20]} 15. Nf3 {[%emt 0:04:39]} Qb6+ {[%emt 0:04:18]} 16. Kh1 {[%emt 0:01:03]} Qc5 {[%emt 0:02:05]} 17. Qe2 {[%emt 0:01:03]} Ne5 {[%emt 0:01:37]} 18. Be3 {[%emt 0:07:41]} Qa5 {[%emt 0:00:23]} 19. Nxe5 {[%emt 0:00:09]} dxe5 {[%emt 0:32:11]} 20. Qxh5 {[%emt 0:01:21]} Qc7 {[%emt 0:00:00]} 21. g4 {[%emt 0:08:47]} Bf6 {[%emt 0:00:00]} 22. g5 {[%emt 0:00:35]} g6 {[%emt 0:00:00]} 23. fxg6 {[%emt 0:02:18]} Nf5 {[%emt 0:00:00]} 24. gxf7+ {[%emt 0:01:06]} Kf8 {[%emt 0:00:00]} 25. Bc5+ {[%emt 0:00:35]} Nd6 {[%emt 0:00:00]} 26. Rxf6 {[%emt 0:02:33]} Rxh5 {[%emt 0:00:00]} 27. Bxd6+ {[%emt 0:05:25]} Qxd6 {[%emt 0:00:00]} 28. Rxd6 {[%emt 0:00:03]} Bxh3 {[%emt 0:00:00]} 29. Rh6 {[%emt 0:00:18]} Bg4+ {[%emt 0:00:00]} 30. Kg2 {[%emt 0:00:11]} Kg7 {[%emt 0:00:00]} 31. Rxh5 {[%emt 0:00:05]} Bxh5 {[%emt 0:00:00]} 32. Rf1 {[%emt 0:00:10]} Rd8 {[%emt 0:00:00]} 33. Kg3 {[%emt 0:00:15]} b5 {[%emt 0:00:00]} 34. Rf5 {[%emt 0:01:00]} b4 {[%emt 0:00:16]} 35. Na4 {[%emt 0:00:14]} 1-0

[Event "FIDE World School-ch G-15 2025"]
[Site "Vrnjacka Banja"]
[Date "2025.03.22"]
[Round "3.3"]
[White "Ferrer Naranjo, Liennys"]
[Black "Ashotia, Barbare"]
[Result "1-0"]
[Annotator "NA RC"]
[ECO "B13"]
[WhiteElo "1950"]
[BlackElo "1895"]
[PlyCount "137"]
[EventDate "2025.03.19"]
[EventType "swiss"]
[EventCountry "SRB"]
[SourceTitle "playchess.com"]
[Source "ChessBase"]
[SourceQuality "1"]
[TimeControl "5400+30"]

1. e4 {[%emt 0:00:03]} c6 {[%emt 0:01:41]} 2. d4 {[%emt 0:00:04]} d5 {[%emt 0:00:23]} 3. exd5 {[%emt 0:00:05]} cxd5 {[%emt 0:00:06]} 4. Bd3 {[%emt 0:00:06]} Nf6 {[%emt 0:00:24]} 5. c3 {[%emt 0:00:24]} Bg4 {[%emt 0:00:40]} 6. Qb3 {[%emt 0:00:50]} Qc7 {[%emt 0:00:53]} 7. Ne2 {[%emt 0:02:27]} Bxe2 {[%emt 0:21:09]} 8. Bxe2 {[%emt 0:00:17]} Nc6 {[%emt 0:00:13]} 9. O-O {[%emt 0:03:31]} e6 {[%emt 0:02:21]} 10. Be3 {[%emt 0:03:53]} Bd6 {[%emt 0:02:02]} 11. h3 {[%emt 0:01:43]} O-O {[%emt 0:04:06]} 12. Nd2 {[%emt 0:02:28]} Ne7 {[%emt 0:03:44]} 13. c4 {[%emt 0:11:51]} dxc4 {[%emt 0:07:05]} 14. Nxc4 {[%emt 0:02:33]} Bh2+ {[%emt 0:01:43]} 15. Kh1 {[%emt 0:00:12]} Bf4 {[%emt 0:00:47]} 16. Rac1 {[%emt 0:03:58]} Bxe3 {[%emt 0:02:43]} 17. Nxe3 {[%emt 0:01:45]} Qf4 {[%emt 0:01:20]} 18. Bf3 {[%emt 0:06:24]} Ng6 {[%emt 0:04:59]} 19. Qxb7 {[%emt 0:07:59]} Rab8 {[%emt 0:02:25]} 20. Qc7 {[%emt 0:06:34]} Qxd4 {[%emt 0:03:39]} 21. b3 {[%emt 0:02:39]} Qh4 {[%emt 0:06:27]} 22. Rc4 {[%emt 0:08:01]} Qg5 {[%emt 0:00:58]} 23. Ng4 {[%emt 0:06:17]} Nh5 {[%emt 0:04:11]} 24. Rc5 {[%emt 0:08:37]} f5 {[%emt 0:01:25]} 25. Rfc1 {[%emt 0:05:59]} Nh4 {[%emt 0:02:34]} 26. Bb7 {[%emt 0:05:40]} Nf4 {[%emt 0:04:09]} 27. Qd7 {[%emt 0:04:12]} Rxb7 {[%emt 0:04:29]} 28. Qxb7 {[%emt 0:00:28]} Nd3 {[%emt 0:00:11]} 29. R1c2 {[%emt 0:03:15]} Nxc5 {[%emt 0:00:53]} 30. Rxc5 {[%emt 0:00:04]} Rd8 {[%emt 0:03:19]} 31. Ne3 {[%emt 0:01:14]} Qf6 {[%emt 0:01:40]} 32. Qc7 {[%emt 0:02:11]} Rd2 {[%emt 0:07:43]} 33. Kg1 {[%emt 0:00:39]} Rxa2 {[%emt 0:03:34]} 34. Qb8+ {[%emt 0:00:28]} Kf7 {[%emt 0:00:04]} 35. Qc7+ {[%emt 0:00:36]} Kg6 {[%emt 0:00:15]} 36. Nd5 {[%emt 0:01:03]} Ra1+ {[%emt 0:01:24]} 37. Kh2 {[%emt 0:00:00]} Qg5 {[%emt 0:00:17]} 38. Nf4+ {[%emt 0:00:13]} Kh6 {[%emt 0:00:08]} 39. Rc1 {[%emt 0:00:31]} Ra2 {[%emt 0:01:24]} 40. Rf1 {[%emt 0:00:36]} Rd2 {[%emt 0:00:48]} 41. Qe5 {[%emt 0:01:10]} g6 {[%emt 0:00:40]} 42. Qb8 {[%emt 0:00:00]} Rd8 {[%emt 0:00:12]} 43. Qe5 {[%emt 0:00:26]} Re8 {[%emt 0:00:53]} 44. Kh1 {[%emt 0:00:28]} Qe7 {[%emt 0:01:02]} 45. Nd3 {[%emt 0:01:06]} Qb7 {[%emt 0:00:16]} 46. f3 {[%emt 0:00:00]} Qxb3 {[%emt 0:00:27]} 47. Qe3+ {[%emt 0:00:23]} g5 {[%emt 0:00:13]} 48. f4 {[%emt 0:00:11]} Qb7 {[%emt 0:01:47]} 49. fxg5+ {[%emt 0:00:13]} Kg6 {[%emt 0:00:15]} 50. Nf4+ {[%emt 0:00:33]} Kf7 {[%emt 0:00:42]} 51. Qe5 {[%emt 0:00:22]} Qe7 {[%emt 0:00:35]} 52. Ra1 {[%emt 0:01:07]} Ng6 {[%emt 0:00:33]} 53. Nxg6 {[%emt 0:00:17]} hxg6 {[%emt 0:00:09]} 54. Ra4 {[%emt 0:00:26]} Kg8 {[%emt 0:00:32]} 55. h4 {[%emt 0:00:42]} Rc8 {[%emt 0:00:22]} 56. Ra6 {[%emt 0:00:31]} Re8 {[%emt 0:00:52]} 57. Qe3 {[%emt 0:00:41]} Qh7 {[%emt 0:00:36]} 58. g3 {[%emt 0:00:33]} Re7 {[%emt 0:00:22]} 59. Kg1 {[%emt 0:00:30]} e5 {[%emt 0:00:29]} 60. Qb3+ {[%emt 0:00:12]} Qf7 {[%emt 0:00:07]} 61. Rxg6+ {[%emt 0:00:11]} Kf8 {[%emt 0:00:17]} 62. Rf6 {[%emt 0:00:10]} e4 {[%emt 0:00:19]} 63. Rxf7+ {[%emt 0:00:08]} Rxf7 {[%emt 0:00:05]} 64. Qb8+ {[%emt 0:00:12]} Kg7 {[%emt 0:00:04]} 65. Qe5+ {[%emt 0:00:08]} Kh7 {[%emt 0:00:12]} 66. h5 {[%emt 0:00:13]} Kg8 {[%emt 0:00:24]} 67. Qe8+ {[%emt 0:00:17]} Kg7 {[%emt 0:00:20]} 68. h6+ {[%emt 0:00:08]} Kg6 {[%emt 0:00:18]} 69. Qg8+ {[%emt 0:00:08]} 1-0

[Event "FIDE World School-ch G-15 2025"]
[Site "Vrnjacka Banja"]
[Date "2025.03.22"]
[Round "3.4"]
[White "Aadya Gupta"]
[Black "Biro, Beata"]
[Result "1/2-1/2"]
[Annotator "NA RC"]
[ECO "D12"]
[WhiteElo "1928"]
[BlackElo "1877"]
[PlyCount "166"]
[EventDate "2025.03.19"]
[EventType "swiss"]
[EventCountry "SRB"]
[SourceTitle "playchess.com"]
[Source "ChessBase"]
[SourceQuality "1"]
[TimeControl "5400+30"]

1. d4 {[%emt 0:02:27]} d5 {[%emt 0:00:16]} 2. c4 {[%emt 0:00:01]} c6 {[%emt 0:00:14]} 3. Nf3 {[%emt 0:00:03]} Nf6 {[%emt 0:00:30]} 4. e3 {[%emt 0:00:01]} Bf5 {[%emt 0:01:40]} 5. Nc3 {[%emt 0:00:36]} e6 {[%emt 0:00:49]} 6. Nh4 {[%emt 0:00:23]} Bg6 {[%emt 0:01:25]} 7. Nxg6 {[%emt 0:01:51]} hxg6 {[%emt 0:00:12]} 8. g3 {[%emt 0:01:13]} Nbd7 {[%emt 0:01:58]} 9. f4 {[%emt 0:04:30]} Bb4 {[%emt 0:03:58]} 10. Bd3 {[%emt 0:05:34]} dxc4 {[%emt 0:02:31]} 11. Bxc4 {[%emt 0:00:59]} Ne4 {[%emt 0:03:38]} 12. O-O {[%emt 0:05:47]} Bxc3 {[%emt 0:08:03]} 13. bxc3 {[%emt 0:01:04]} Qa5 {[%emt 0:03:53]} 14. Bd3 {[%emt 0:23:46]} Nxc3 {[%emt 0:08:54]} 15. Qf3 {[%emt 0:04:46]} Qh5 {[%emt 0:04:41]} 16. Qxh5 {[%emt 0:02:36]} Rxh5 {[%emt 0:00:54]} 17. Bd2 {[%emt 0:01:02]} Na4 {[%emt 0:02:42]} 18. Rab1 {[%emt 0:06:07]} O-O-O {[%emt 0:02:25]} 19. Rfc1 {[%emt 0:03:11]} Nab6 {[%emt 0:04:06]} 20. Be2 {[%emt 0:03:55]} Rhh8 {[%emt 0:02:09]} 21. a4 {[%emt 0:05:24]} Nxa4 {[%emt 0:08:00]} 22. Ra1 {[%emt 0:01:41]} Nab6 {[%emt 0:00:39]} 23. Rxa7 {[%emt 0:00:52]} Kc7 {[%emt 0:01:13]} 24. Bf3 {[%emt 0:04:15]} Kb8 {[%emt 0:04:53]} 25. Ra2 {[%emt 0:06:47]} f6 {[%emt 0:05:32]} 26. Rb2 {[%emt 0:02:00]} Kc7 {[%emt 0:02:58]} 27. Ba5 {[%emt 0:02:26]} Ra8 {[%emt 0:00:43]} 28. Bxb6+ {[%emt 0:00:43]} Nxb6 {[%emt 0:00:08]} 29. Rcb1 {[%emt 0:00:02]} Nd5 {[%emt 0:06:04]} 30. Rxb7+ {[%emt 0:00:17]} Kd6 {[%emt 0:00:36]} 31. e4 {[%emt 0:00:41]} Nc7 {[%emt 0:00:26]} 32. R7b6 {[%emt 0:06:08]} Kd7 {[%emt 0:03:48]} 33. e5 {[%emt 0:02:24]} Nd5 {[%emt 0:00:53]} 34. Bxd5 {[%emt 0:00:46]} exd5 {[%emt 0:01:14]} 35. Rb7+ {[%emt 0:01:20]} Ke6 {[%emt 0:01:20]} 36. Rxg7 {[%emt 0:00:45]} fxe5 {[%emt 0:01:48]} 37. fxe5 {[%emt 0:01:50]} Kf5 {[%emt 0:00:09]} 38. Re1 {[%emt 0:00:17]} Ra2 {[%emt 0:00:54]} 39. Rf7+ {[%emt 0:00:20]} Kg5 {[%emt 0:01:31]} 40. h4+ {[%emt 0:01:05]} Kg4 {[%emt 0:00:40]} 41. Re3 {[%emt 0:00:31]} Re8 {[%emt 0:02:47]} 42. Rf2 {[%emt 0:00:24]} Ra4 {[%emt 0:00:52]} 43. Rd3 {[%emt 0:00:13]} Rc4 {[%emt 0:00:25]} 44. Kg2 {[%emt 0:00:12]} g5 {[%emt 0:02:03]} 45. hxg5 {[%emt 0:01:06]} Kxg5 {[%emt 0:00:02]} 46. Rf7 {[%emt 0:00:30]} c5 {[%emt 0:02:46]} 47. dxc5 {[%emt 0:00:35]} Rxc5 {[%emt 0:00:12]} 48. Re3 {[%emt 0:00:29]} d4 {[%emt 0:00:36]} 49. Rd3 {[%emt 0:00:24]} Rd5 {[%emt 0:00:53]} 50. Rf4 {[%emt 0:00:32]} Rexe5 {[%emt 0:01:12]} 51. Rfxd4 {[%emt 0:00:25]} Rxd4 {[%emt 0:01:02]} 52. Rxd4 {[%emt 0:00:01]} Ra5 {[%emt 0:00:19]} 53. Kh3 {[%emt 0:00:15]} Rb5 {[%emt 0:00:52]} 54. Rg4+ {[%emt 0:00:13]} Kh5 {[%emt 0:00:39]} 55. Rg8 {[%emt 0:00:33]} Rb3 {[%emt 0:00:48]} 56. Kg2 {[%emt 0:00:12]} Rb2+ {[%emt 0:00:35]} 57. Kf3 {[%emt 0:00:03]} Rb3+ {[%emt 0:00:07]} 58. Ke2 {[%emt 0:00:09]} Rb2+ {[%emt 0:00:59]} 59. Kf3 {[%emt 0:00:32]} Rb3+ {[%emt 0:00:06]} 60. Kg2 {[%emt 0:00:08]} Rb2+ {[%emt 0:00:06]} 61. Kh3 {[%emt 0:00:02]} Rb3 {[%emt 0:00:33]} 62. Rc8 {[%emt 0:00:05]} Rb6 {[%emt 0:01:26]} 63. Rc5+ {[%emt 0:00:15]} Kg6 {[%emt 0:00:16]} 64. Kh4 {[%emt 0:00:08]} Ra6 {[%emt 0:00:43]} 65. g4 {[%emt 0:00:16]} Rb6 {[%emt 0:00:17]} 66. Rg5+ {[%emt 0:00:14]} Kh6 {[%emt 0:00:13]} 67. Rg8 {[%emt 0:00:10]} Kh7 {[%emt 0:00:41]} 68. Rc8 {[%emt 0:00:55]} Kg6 {[%emt 0:00:12]} 69. Rc5 {[%emt 0:00:02]} Ra6 {[%emt 0:00:10]} 70. Rg5+ {[%emt 0:00:09]} Kh6 {[%emt 0:00:07]} 71. Rg8 {[%emt 0:00:11]} Kh7 {[%emt 0:00:06]} 72. Rd8 {[%emt 0:00:04]} Kg6 {[%emt 0:00:07]} 73. Rd4 {[%emt 0:00:02]} Rb6 {[%emt 0:00:46]} 74. Kg3 {[%emt 0:00:47]} Rf6 {[%emt 0:01:06]} 75. Rb4 {[%emt 0:00:59]} Kg5 {[%emt 0:00:53]} 76. Rb8 {[%emt 0:00:10]} Ra6 {[%emt 0:00:20]} 77. Rg8+ {[%emt 0:00:16]} Rg6 {[%emt 0:00:18]} 78. Rf8 {[%emt 0:00:07]} Ra6 {[%emt 0:00:10]} 79. Rf5+ {[%emt 0:00:05]} Kg6 {[%emt 0:00:08]} 80. Kh4 {[%emt 0:00:07]} Rb6 {[%emt 0:00:07]} 81. Rf8 {[%emt 0:00:04]} Ra6 {[%emt 0:00:24]} 82. Rg8+ {[%emt 0:00:02]} Kh7 {[%emt 0:06:39]} 83. Rg5 {[%emt 0:00:05]} Kh6 {[%emt 0:00:00]} 1/2-1/2

[Event "FIDE World School-ch G-15 2025"]
[Site "Vrnjacka Banja"]
[Date "2025.03.22"]
[Round "3.5"]
[White "Assylkhan, Asiya"]
[Black "Aydogan, Arya"]
[Result "1-0"]
[Annotator "NA RC"]
[ECO "E05"]
[WhiteElo "1969"]
[BlackElo "1766"]
[PlyCount "133"]
[EventDate "2025.03.19"]
[EventType "swiss"]
[EventCountry "SRB"]
[SourceTitle "playchess.com"]
[Source "ChessBase"]
[SourceQuality "1"]
[TimeControl "5400+30"]

1. d4 {[%emt 0:00:03]} d5 {[%emt 0:00:06]} 2. c4 {[%emt 0:00:05]} e6 {[%emt 0:00:06]} 3. Nf3 {[%emt 0:00:06]} Nf6 {[%emt 0:01:00]} 4. g3 {[%emt 0:00:07]} Be7 {[%emt 0:00:24]} 5. Bg2 {[%emt 0:00:07]} O-O {[%emt 0:00:42]} 6. O-O {[%emt 0:00:18]} dxc4 {[%emt 0:02:02]} 7. Qc2 {[%emt 0:04:45]} a6 {[%emt 0:04:38]} 8. a4 {[%emt 0:00:16]} Bd7 {[%emt 0:05:14]} 9. Ne5 {[%emt 0:08:57]} Bc6 {[%emt 0:06:29]} 10. Nxc6 {[%emt 0:00:11]} Nxc6 {[%emt 0:00:21]} 11. e3 {[%emt 0:00:03]} Na5 {[%emt 0:09:32]} 12. Nd2 {[%emt 0:00:10]} c5 {[%emt 0:04:33]} 13. dxc5 {[%emt 0:14:56]} Rc8 {[%emt 0:09:31]} 14. b4 {[%emt 0:03:27]} cxb3 {[%emt 0:05:50]} 15. Nxb3 {[%emt 0:00:11]} Nxb3 {[%emt 0:03:17]} 16. Qxb3 {[%emt 0:00:13]} Bxc5 {[%emt 0:01:12]} 17. Rd1 {[%emt 0:01:30]} Qe7 {[%emt 0:04:01]} 18. Qxb7 {[%emt 0:00:41]} a5 {[%emt 0:01:59]} 19. Bd2 {[%emt 0:02:17]} Qxb7 {[%emt 0:08:45]} 20. Bxb7 {[%emt 0:00:11]} Rc7 {[%emt 0:03:37]} 21. Rab1 {[%emt 0:04:43]} Rd8 {[%emt 0:04:28]} 22. Bf3 {[%emt 0:01:34]} Ra7 {[%emt 0:03:38]} 23. Rb5 {[%emt 0:02:45]} Bf8 {[%emt 0:03:06]} 24. Bxa5 {[%emt 0:00:42]} Rc8 {[%emt 0:00:51]} 25. Ra1 {[%emt 0:10:48]} Rc4 {[%emt 0:03:07]} 26. Be2 {[%emt 0:01:17]} Rc2 {[%emt 0:01:06]} 27. Bd1 {[%emt 0:00:10]} Rc6 {[%emt 0:01:21]} 28. Bb6 {[%emt 0:00:56]} Ra6 {[%emt 0:02:13]} 29. Bd4 {[%emt 0:02:14]} Rc4 {[%emt 0:04:26]} 30. Rb8 {[%emt 0:01:21]} Nd7 {[%emt 0:01:50]} 31. Rd8 {[%emt 0:00:11]} Rc7 {[%emt 0:02:19]} 32. Be2 {[%emt 0:02:10]} Rd6 {[%emt 0:02:30]} 33. Bb5 {[%emt 0:00:31]} e5 {[%emt 0:01:05]} 34. Bb2 {[%emt 0:00:16]} Nc5 {[%emt 0:01:27]} 35. Bxe5 {[%emt 0:04:09]} Rxd8 {[%emt 0:00:14]} 36. Bxc7 {[%emt 0:00:05]} Rd2 {[%emt 0:00:41]} 37. Ba5 {[%emt 0:01:16]} Rc2 {[%emt 0:00:19]} 38. Rd1 {[%emt 0:00:25]} g6 {[%emt 0:00:54]} 39. Rd8 {[%emt 0:00:44]} Kg7 {[%emt 0:00:26]} 40. Rc8 {[%emt 0:00:09]} Ra2 {[%emt 0:00:35]} 41. Bb4 {[%emt 0:00:10]} Nd7 {[%emt 0:00:25]} 42. Bc3+ {[%emt 0:00:42]} Nf6 {[%emt 0:00:34]} 43. Bxf6+ {[%emt 0:00:06]} Kxf6 {[%emt 0:00:03]} 44. Rxf8 {[%emt 0:00:09]} Ke7 {[%emt 0:00:08]} 45. Rxf7+ {[%emt 0:00:08]} Kxf7 {[%emt 0:00:04]} 46. Bc4+ {[%emt 0:00:08]} Ke7 {[%emt 0:00:03]} 47. Bxa2 {[%emt 0:00:05]} Kd6 {[%emt 0:00:05]} 48. f4 {[%emt 0:00:08]} Kc5 {[%emt 0:00:04]} 49. e4 {[%emt 0:00:08]} Kb4 {[%emt 0:00:03]} 50. Bb3 {[%emt 0:00:05]} h6 {[%emt 0:00:15]} 51. f5 {[%emt 0:00:05]} gxf5 {[%emt 0:00:04]} 52. exf5 {[%emt 0:00:04]} h5 {[%emt 0:00:05]} 53. f6 {[%emt 0:00:03]} Kxb3 {[%emt 0:00:04]} 54. f7 {[%emt 0:00:07]} Kxa4 {[%emt 0:00:04]} 55. f8=Q {[%emt 0:00:05]} Kb5 {[%emt 0:00:03]} 56. Qc8 {[%emt 0:00:10]} Kb6 {[%emt 0:00:04]} 57. Qc4 {[%emt 0:00:15]} Kb7 {[%emt 0:00:03]} 58. Qc5 {[%emt 0:00:05]} Kb8 {[%emt 0:00:03]} 59. Qe7 {[%emt 0:00:07]} Kc8 {[%emt 0:00:02]} 60. h3 {[%emt 0:00:15]} Kb8 {[%emt 0:00:03]} 61. Qd7 {[%emt 0:00:06]} Ka8 {[%emt 0:00:46]} 62. g4 {[%emt 0:00:07]} hxg4 {[%emt 0:00:04]} 63. hxg4 {[%emt 0:00:04]} Kb8 {[%emt 0:00:04]} 64. g5 {[%emt 0:00:04]} Ka8 {[%emt 0:00:02]} 65. g6 {[%emt 0:00:05]} Kb8 {[%emt 0:00:02]} 66. g7 {[%emt 0:00:05]} Ka8 {[%emt 0:00:03]} 67. g8=Q# {[%emt 0:00:08]} 1-0

[Event "FIDE World School-ch G-15 2025"]
[Site "Vrnjacka Banja"]
[Date "2025.03.22"]
[Round "3.6"]
[White "Smagina, Viktoria"]
[Black "Aldea, Maria-Antonia"]
[Result "0-1"]
[Annotator "NA RC"]
[ECO "B55"]
[WhiteElo "1669"]
[BlackElo "1954"]
[PlyCount "158"]
[EventDate "2025.03.19"]
[EventType "swiss"]
[EventCountry "SRB"]
[SourceTitle "playchess.com"]
[Source "ChessBase"]
[SourceQuality "1"]
[TimeControl "5400+30"]

1. e4 {[%emt 0:00:03]} c5 {[%emt 0:00:06]} 2. Nf3 {[%emt 0:00:04]} d6 {[%emt 0:00:03]} 3. d4 {[%emt 0:00:05]} cxd4 {[%emt 0:00:04]} 4. Nxd4 {[%emt 0:00:03]} Nf6 {[%emt 0:00:05]} 5. Bd3 {[%emt 0:00:03]} Nc6 {[%emt 0:00:03]} 6. Nxc6 {[%emt 0:02:07]} bxc6 {[%emt 0:00:03]} 7. c4 {[%emt 0:01:24]} g6 {[%emt 0:00:54]} 8. Nc3 {[%emt 0:00:12]} Nd7 {[%emt 0:00:19]} 9. Bd2 {[%emt 0:05:37]} a5 {[%emt 0:05:58]} 10. O-O {[%emt 0:01:09]} Bg7 {[%emt 0:00:03]} 11. Qc1 {[%emt 0:00:40]} O-O {[%emt 0:05:18]} 12. Kh1 {[%emt 0:08:08]} Nc5 {[%emt 0:08:29]} 13. Bc2 {[%emt 0:00:46]} Rb8 {[%emt 0:08:21]} 14. Rb1 {[%emt 0:00:41]} f5 $11 {[%emt 0:04:35]} 15. f3 {[%emt 0:01:39]} Ba6 {[%emt 0:09:14]} 16. b3 {[%emt 0:00:57]} f4 {[%emt 0:11:15]} 17. Ne2 {[%emt 0:01:55]} e5 {[%emt 0:02:54]} 18. g3 {[%emt 0:00:29]} g5 {[%emt 0:02:28]} 19. gxf4 {[%emt 0:00:18]} gxf4 {[%emt 0:00:45]} 20. Rd1 {[%emt 0:01:08]} Qh4 {[%emt 0:04:14]} 21. Bxa5 {[%emt 0:00:38]} Rf6 {[%emt 0:00:46]} 22. Rg1 {[%emt 0:01:31]} Rh6 {[%emt 0:02:13]} 23. Rg2 {[%emt 0:00:20]} Qh5 {[%emt 0:03:37]} 24. Qf1 {[%emt 0:01:16]} Ne6 {[%emt 0:04:17]} 25. Rd1 {[%emt 0:00:47]} Ng5 {[%emt 0:02:37]} 26. Ng1 {[%emt 0:00:12]} Re8 {[%emt 0:04:07]} 27. Bc7 {[%emt 0:01:48]} Ree6 {[%emt 0:01:19]} 28. Bd8 {[%emt 0:00:35]} Nf7 {[%emt 0:01:59]} 29. Bc7 {[%emt 0:00:11]} Reg6 {[%emt 0:01:33]} 30. Rdd2 {[%emt 0:00:27]} Ng5 {[%emt 0:03:42]} 31. Bd8 {[%emt 0:00:25]} Nf7 {[%emt 0:01:38]} 32. Rxg6 {[%emt 0:00:23]} hxg6 {[%emt 0:00:50]} 33. Bc7 {[%emt 0:00:27]} Bf8 {[%emt 0:02:11]} 34. Qg2 {[%emt 0:00:45]} Bc8 {[%emt 0:00:35]} 35. a4 {[%emt 0:00:34]} c5 {[%emt 0:00:56]} 36. Bd1 {[%emt 0:00:36]} Qh4 {[%emt 0:02:44]} 37. a5 {[%emt 1:10:37]} Qe7 {[%emt 0:01:28]} 38. Bb6 {[%emt 0:00:00]} Ng5 {[%emt 0:01:58]} 39. Ra2 {[%emt 0:00:00]} Ba6 {[%emt 0:00:03]} 40. Qd2 {[%emt 0:00:00]} Ne6 {[%emt 0:00:58]} 41. Qd5 {[%emt 0:00:00]} Bb7 {[%emt 0:00:02]} 42. Qd2 {[%emt 0:00:00]} Nd4 {[%emt 0:02:59]} 43. a6 {[%emt 0:00:00]} Ba8 {[%emt 0:00:03]} 44. a7 {[%emt 0:00:00]} g5 {[%emt 0:01:08]} 45. Qa5 {[%emt 0:00:00]} Nc6 {[%emt 0:02:15]} 46. Qa3 {[%emt 0:00:00]} Nb4 {[%emt 0:02:21]} 47. Rg2 {[%emt 0:00:00]} Kh8 {[%emt 0:00:00]} 48. Ba5 {[%emt 0:00:00]} Nc6 {[%emt 0:00:09]} 49. Bb6 {[%emt 0:00:00]} Qb7 {[%emt 0:00:21]} 50. Ba5 {[%emt 0:00:00]} Qxa7 {[%emt 0:00:33]} 51. b4 {[%emt 0:00:00]} cxb4 {[%emt 0:00:31]} 52. Bxb4 {[%emt 0:00:00]} Qxa3 {[%emt 0:00:40]} 53. Bxa3 {[%emt 0:00:00]} Be7 {[%emt 0:00:12]} 54. Ba4 {[%emt 0:00:00]} Nd4 {[%emt 0:00:43]} 55. Rb2 {[%emt 0:00:00]} Kg7 {[%emt 0:00:40]} 56. Rb6 {[%emt 0:00:00]} Nxf3 {[%emt 0:00:34]} 57. Nxf3 {[%emt 0:00:00]} Bxe4 {[%emt 0:00:02]} 58. Bc6 {[%emt 0:00:00]} d5 {[%emt 0:00:59]} 59. Bxe7 {[%emt 0:00:00]} Bxf3+ {[%emt 0:00:06]} 60. Kg1 {[%emt 0:00:00]} d4 {[%emt 0:00:18]} 61. Bxf3 {[%emt 0:00:00]} Rxb6 {[%emt 0:00:04]} 62. Bxg5 {[%emt 0:00:00]} d3 {[%emt 0:00:34]} 63. Kf2 {[%emt 0:00:00]} Rb2+ {[%emt 0:00:35]} 64. Ke1 {[%emt 0:00:00]} Rc2 {[%emt 0:00:26]} 65. Bd5 {[%emt 0:00:00]} Rxh2 {[%emt 0:01:02]} 66. Be4 {[%emt 0:00:00]} Re2+ {[%emt 0:00:04]} 67. Kd1 {[%emt 0:00:00]} Rxe4 {[%emt 0:00:04]} 68. c5 {[%emt 0:00:00]} Rc4 {[%emt 0:00:07]} 69. Be7 {[%emt 0:00:00]} Kf7 {[%emt 0:00:07]} 70. Bd6 {[%emt 0:00:00]} Ke6 {[%emt 0:00:06]} 71. Kd2 {[%emt 0:00:00]} Kd5 {[%emt 0:00:35]} 72. Kxd3 {[%emt 0:00:00]} Rxc5 {[%emt 0:00:09]} 73. Bxc5 {[%emt 0:00:00]} Kxc5 {[%emt 0:00:02]} 74. Ke4 {[%emt 0:00:00]} Kc4 {[%emt 0:00:06]} 75. Kf3 {[%emt 0:00:00]} Kd3 {[%emt 0:00:04]} 76. Kf2 {[%emt 0:00:00]} e4 {[%emt 0:00:04]} 77. Ke1 {[%emt 0:00:00]} Ke3 {[%emt 0:00:04]} 78. Kf1 {[%emt 0:00:00]} Kd2 {[%emt 0:00:05]} 79. Kf2 {[%emt 0:00:00]} e3+ {[%emt 0:00:06]} 0-1